Cogmind - Beta 14 @@@ ROGUE MODE // 2025.03.31 @ 22:13:54 Player: golanco Result: Self-destructed Performance ------------- Evolutions (2) 1000 Regions Visited (3) 600 Robots Destroyed (1) 5 Value Destroyed (10) 10 Prototype IDs (1) 20 Alien Tech Used (0) 0 Bonus (200) 200 TOTAL SCORE: 1835 Bonus ------- Pacifist 200 Cogmind --------- Core Integrity 389/550 Matter 79/300 Energy 7/100 System Corruption 0% Temperature Cool (0) Movement Flying (26) Location -8/Materials Parts ------- > --- POWER (1) -------- (None) > --- PROPULSION (6) --- VTOL Module VTOL Module VTOL Module Improved VTOL Module > --- UTILITY (2) ------ Hacking Suite System Shield > --- WEAPON (2) ------- (None) > --- INVENTORY (5) ---- (None) Peak State ------------ > --- POWER ------------ (None) > --- PROPULSION ------- VTOL Module VTOL Module VTOL Module Improved VTOL Module > --- UTILITY ---------- Hacking Suite System Shield > --- WEAPON ----------- (None) > --- INVENTORY -------- (None) [Rating: 16] Favorites ----------- Power None Propulsion VTOL Module Flight Unit VTOL Module Utility Hacking Suite Hackware Hacking Suite Weapon None Build | -11 -10 -9 -8 ------- Run | Yrd Mat Mat Mat Slots Evolved 4 | . . 2 2 Power . | . . . . Propulsion 4 | . . 2 2 Utility . | . . . . Weapon . | . . . . Parts Attached 7 | . . . 7 Power . | . . . . Engine . | . . . . Core . | . . . . Reactor . | . . . . Propulsion 5 | . . . 5 Treads . | . . . . Leg . | . . . . Wheel . | . . . . Hover . | . . . . Flight 5 | . . . 5 Utility 2 | . . . 2 Device . | . . . . Storage . | . . . . Processor . | . . . . Hackware 2 | . . . 2 Protection . | . . . . Artifact . | . . . . Weapon . | . . . . Energy Gun . | . . . . Energy Cannon . | . . . . Ballistic Gun . | . . . . Ballistic Cannon . | . . . . Launcher . | . . . . Special Weapon . | . . . . Impact Weapon . | . . . . Slashing Weapon . | . . . . Piercing Weapon . | . . . . Special Melee Weapon . | . . . . Unidentified Prototypes 1 | . . . 1 Parts Lost . | . . . . Power . | . . . . Propulsion . | . . . . Utility . | . . . . Weapon . | . . . . Highest Loss Streak . | . . . . To Critical Strikes . | . . . . Average Slot Usage (%) 8 | . . . 18 Flight 4 | . . . 9 Hackware 4 | . . . 9 Peak Build Rating 16 | . . . 16 Average Rating 2 | . . . 5 On Entrance . | . . . . Naked Turns 257 | . 56 166 35 Heaviest Build . | . . . . Greatest Support 17 | 3 3 3 17 Greatest Overweight (x) . | . . . . Average Overweight (x) . | . . . . Largest Inventory Capacity 5 | 5 5 5 5 Average Capacity 5 | 5 5 5 5 Most Carried . | . . . . Average Carried . | . . . . Final Capacity 5 | 5 5 5 5 Final Carried . | . . . . Class Distribution -------------------- 90% | Mutant 9% | Hacker-Sprinter Dominant Class ---------------- Mutant | -10/Materials Mutant | -9/Materials Mutant | -8/Materials Resources | -11 -10 -9 -8 ----------- Run | Yrd Mat Mat Mat Matter Collected 18 | . . 18 . Remotely . | . . . . Salvage Created 18 | . . 18 . Parts 2 | . . 2 . Haulers Intercepted . | . . . . Recyclers Shooed . | . . . . Parts Field Recycled . | . . . . Retrieved Matter . | . . . . Parts Self-Destructed . | . . . . Prevented . | . . . . Kills | -11 -10 -9 -8 ------- Run | Yrd Mat Mat Mat Combat Hostiles Destroyed 1 | . . 1 . Melee 1 | . . 1 . Classes Destroyed 1 | . . 1 . Swarmer 1 | . . 1 . Best Kill Streak 1 | . . 1 . Combat Bots Only 1 | . . 1 . Max Kills in Single Turn 1 | . . 1 . Gunslinging . | . . . . Exploded . | . . . . Melee 1 | . . 1 . Uniques/NPCs Destroyed . | . . . . Combat | -11 -10 -9 -8 -------- Run | Yrd Mat Mat Mat Hostile Shots Fired 88 | . 3 51 34 Missed 39 | . . 23 16 Damage Taken 621 | . 44 365 212 Core 570 | . 44 365 161 Absorbed by Shields . | . . . . Core Remaining (%) 63 | 100 82 8 . Volleys Fired . | . . . . Largest . | . . . . Hottest . | . . . . Shots Fired . | . . . . Gun . | . . . . Cannon . | . . . . Launcher . | . . . . Special . | . . . . Kinetic . | . . . . Thermal . | . . . . Explosive . | . . . . Electromagnetic . | . . . . Robot Hit Streak . | . . . . Robot Miss Streak . | . . . . Penetration Max . | . . . . Secondary Targets . | . . . . Shots Hit Robots . | . . . . Core Hits 3 | . . 3 . Critical Kills . | . . . . Critical Parts Destroyed . | . . . . Critical Strikes . | . . . . Melee Attacks . | . . . . Impact . | . . . . Slashing . | . . . . Piercing . | . . . . Sneak Attacks . | . . . . Combat Hostiles . | . . . . Follow-up Attacks . | . . . . Damage Inflicted 44 | . . 44 . Guns . | . . . . Cannons . | . . . . Explosions . | . . . . Melee . | . . . . Ramming 44 | . . 44 . Kinetic . | . . . . Thermal . | . . . . Explosive . | . . . . Electromagnetic . | . . . . Impact . | . . . . Slashing . | . . . . Piercing . | . . . . Highest Corruption 3 | . . 3 . Average Corruption 1 | . . 1 . Corruption Purged . | . . . . Corruption Blocked . | . . . . Effects 2 | . . 2 . Message Errors 1 | . . 1 . Matter Fused 1 | . . 1 . Overload Shots . | . . . . Overflow Damage . | . . . . Projectiles . | . . . . Explosions . | . . . . Melee . | . . . . Knockbacks . | . . . . Impact . | . . . . Kinetic . | . . . . Secondary . | . . . . Self-Inflicted Damage 18 | . . 18 . Shots . | . . . . Rammed 13 | . . 13 . Targets Rammed 13 | . . 13 . Kicked . | . . . . Crushed . | . . . . Highest Temperature . | . . . . Average Temperature . | . . . . Received Heat Transfer 210 | . 24 114 72 Siege Activations . | . . . . Robots Corrupted . | . . . . Combat Hostiles . | . . . . Parts Fried . | . . . . Impact Corruptions . | . . . . Robots Melted . | . . . . Combat Hostiles . | . . . . Parts Melted . | . . . . Heat Transferred . | . . . . Parts Sabotaged . | . . . . Parts Stolen . | . . . . Parts Stripped . | . . . . Power Chain Reactions . | . . . . Alert | -11 -10 -9 -8 ------- Run | Yrd Mat Mat Mat Peak Influence 253 | . . 233 253 Initial 98 | . . . 98 Average 94 | . . 84 136 Maximum Alert Level 1 | . . 1 1 Low Security (%) 88 | 100 100 88 83 Level 1 11 | . . 11 16 Level 2 . | . . . . Level 3 . | . . . . Level 4 . | . . . . Level 5 . | . . . . High Security . | . . . . Max Security . | . . . . Squads Dispatched 4 | . 1 2 1 Investigation 2 | . . 1 1 Extermination . | . . . . Reinforcement 2 | . 1 1 . Assault . | . . . . Garrison . | . . . . Intercept . | . . . . Searches Triggered . | . . . . Construction Impeded . | . . . . Haulers Reinforced . | . . . . Active Scanning Responses . | . . . . Cargo Convoy Interrupts . | . . . . Stealth | -11 -10 -9 -8 --------- Run | Yrd Mat Mat Mat Distress Signals 3 | . 1 2 . Communications Jammed . | . . . . Distress Signals . | . . . . Times Spotted 40 | . 6 20 14 Peak Tracking Total 10 | . 6 7 10 Tactical Retreats 8 | . . 5 3 Traps | -11 -10 -9 -8 ------- Run | Yrd Mat Mat Mat Traps Triggered . | . . . . Indirectly . | . . . . Trap Hack Attempts . | . . . . Triggered . | . . . . Disarmed . | . . . . Reprogrammed . | . . . . Reused . | . . . . Traps Extracted . | . . . . Installed . | . . . . Triggered . | . . . . Machines | -11 -10 -9 -8 ---------- Run | Yrd Mat Mat Mat Machines Disabled . | . . . . Max in Single Turn . | . . . . Machines Repaired . | . . . . Machines Dismantled . | . . . . Machines Sabotaged . | . . . . Overloaded Fab Kills . | . . . . Hacking | -11 -10 -9 -8 --------- Run | Yrd Mat Mat Mat Machines Accessed 5 | . . 3 2 Terminals 5 | . . 3 2 Fabricators . | . . . . Repair Stations . | . . . . Recycling Units . | . . . . Scanalyzers . | . . . . Garrison Access . | . . . . Total Hacks 16 | . . 8 8 Successful 5 | . . 3 2 Failed 11 | . . 5 6 Catastrophic 3 | . . 2 1 Database Lockouts . | . . . . Manual 9 | . . 6 3 Terminals 16 | . . 8 8 Fabricators . | . . . . Repair Stations . | . . . . Recycling Units . | . . . . Scanalyzers . | . . . . Garrison Access . | . . . . Terminal Hacks 3 | . . 1 2 Robot Analysis 1 | . . . 1 Hauler Manifests 1 | . . . 1 Registered Prototypes 1 | . . 1 . Fabricator Hacks . | . . . . Repair Station Hacks . | . . . . Recycling Unit Hacks . | . . . . Scanalyzer . | . . . . Garrison Access Hacks . | . . . . Unauthorized Hacks 2 | . . 2 . Terminals 2 | . . 2 . Botnet 2 | . . 2 . Fabricators . | . . . . Repair Stations . | . . . . Recycling Units . | . . . . Scanalyzers . | . . . . Garrison Access . | . . . . Data Cores Recovered . | . . . . Used . | . . . . Hacking Detections 5 | . . 3 2 Full Trace Events 4 | . . 2 2 Feedback Events 1 | . . 1 . Corruption 1 | . . 1 . Feedback Blocked . | . . . . Robot Schematics Acquired . | . . . . Robots Built . | . . . . Authchips . | . . . . Time . | . . . . Total Robot Build Rating . | . . . . Part Schematics Acquired . | . . . . Parts Built . | . . . . Authchips . | . . . . Time . | . . . . Total Part Build Rating . | . . . . Parts Repaired . | . . . . Time . | . . . . Parts Recycled . | . . . . Recycled Matter . | . . . . Retrieved Matter . | . . . . Retrieved Components . | . . . . Parts Scanalyzed . | . . . . Part Schematics Acquired . | . . . . Parts Damaged . | . . . . Bothacking | -11 -10 -9 -8 ------------ Run | Yrd Mat Mat Mat Used RIF Installer . | . . . . Robots Hacked . | . . . . Non-combat . | . . . . Combat . | . . . . Robot Hacks Applied . | . . . . Relay Couplers Released . | . . . . Fabnet Peak Effective % . | . . . . Robots Rewired . | . . . . Allies Hacked . | . . . . Hacks Repelled . | . . . . Allies | -11 -10 -9 -8 -------- Run | Yrd Mat Mat Mat Total Allies . | . . . . Largest Group . | . . . . Highest-Rated Group . | . . . . Highest-Rated Ally . | . . . . Total Orders . | . . . . Ally Attacks . | . . . . Total Damage . | . . . . Kills . | . . . . Allies Corrupted . | . . . . Allies Melted . | . . . . Intel | -11 -10 -9 -8 ------- Run | Yrd Mat Mat Mat Robot Analysis Total 1 | . . . 1 Derelict Logs Recovered . | . . . . Drone Launches . | . . . . Drone Recoveries . | . . . . Exploration | -11 -10 -9 -8 ------------- Run | Yrd Mat Mat Mat Turns Passed 419 | 10 56 166 187 Spaces Moved 794 | 20 112 279 383 Core 634 | 20 112 279 223 Treads . | . . . . Legs . | . . . . Wheels . | . . . . Hover . | . . . . Flight 160 | . . . 160 Fastest Speed 26 | 50 50 50 26 Average Speed 46 | 50 50 50 42 Slowest Speed 50 | 50 50 50 50 Overloaded Moves . | . . . . Propulsion Burnouts . | . . . . Robots Hopped 4 | . . . 4 Cave-ins Triggered . | . . . . Exploration Rate (%) 31 | 3 42 39 42 Regions Visited 3 Branch Regions . Pre-discovered Areas . | . . . . Known Exits Taken . | . . . . Unknown Exits Taken 3 | 1 1 1 . Scrap Searched . | . . . . Spaces Dug . | . . . . Terrain Destroyed . | . . . . Melee . | . . . . Projectile . | . . . . AOE . | . . . . Terrain Rammed . | . . . . Walls Destroyed . | . . . . Machines Disabled . | . . . . Actions | -11 -10 -9 -8 --------- Run | Yrd Mat Mat Mat Total 835 | 19 111 304 401 Wait 27 | . . 13 14 Move 783 | 19 111 278 375 Hop 4 | . . . 4 Pick Up . | . . . . Fast Attach 7 | . . . 7 Attach . | . . . . Detach . | . . . . Swap . | . . . . Drop 1 | . . . 1 Fire . | . . . . Melee . | . . . . Ram 13 | . . 13 . Kick . | . . . . Crush . | . . . . Escape Stasis . | . . . . Rewire . | . . . . Trap . | . . . . Miscellaneous . | . . . . Route ------- -11/Scrapyard -10/Materials (discovered 2 exits: *Mat / [*Min]) -9/Materials (discovered 2 exits: *Mat / [*Sto]) -8/Materials History --------- Turn | Location | Event 4 | -11/Scrapyard | Discovered new exit (range 12) 11 | -11/Scrapyard | Entered Materials 39 | -10/Materials | Discovered new exit (range 15) 60 | -10/Materials | Discovered new exit (range 13) 67 | -10/Materials | Entered another Materials area 67 | -9/Materials | Evolved 2 slots: Propulsion x2 71 | -9/Materials | Discovered new exit (range 5) 208 | -9/Materials | Core integrity fell below 50% 225 | -9/Materials | Core integrity fell below 20% 229 | -9/Materials | Discovered new exit (range 9) 233 | -9/Materials | Entered another Materials area 233 | -8/Materials | Evolved 2 slots: Propulsion x2 308 | -8/Materials | Build established: Mutant 420 | -8/Materials | Self-destructed Last Messages --------------- 1x Imp. Datajack 2x Hvy. Flail ALERT: Suspicious activity at Terminal M010. Dispatching Investigation squad. Acquired Prototype Flight Unit. Identified Imp. VTOL Module. Acquired Imp. VTOL Module. Dropped Faulty Imp. VTOL Module. C-30 ARC bursts open, deploying its payload. B-36 Bruiser unfolds itself. G-47 Trooper unfolds itself. C-30 ARC bursts open, deploying its payload. S-10 Pest unfolds itself. K-01 Serf collects debris. S-10 Pest destroyed. T-07 Excavator is excavating. K-01 Serf collects debris. Acquired System Shield. Acquired VTOL Module. Connecting with Terminal... Map ----- +----------------------------------------------------+ | ?????????????????????????????????? | | ?????????????????????????????????? | | ?????????????????????????????????? | | ?????????????????????????????????? | | ?????????????????????????????????? | | ?????????????????????????????????? | | ?????????????????????????????????? | | ?????????????????????????????????? | | ?????????????????????????????????? | | ?????????????????????????????????? | | ?????????????????????????????????? | | ????????????????????H????????????? | | ?????????????????????????????????? | | ?????????????????????????????????? | | ?????????????????????????????????? | | ?????????????????????????????????? | | ?????????????????????????????????? | | ????????????????????????########## | | ????????????????????????# # | | ?????????????????????#### !# | | ?????????????????????# + # | | ?????????????????????# # # | | ?????????????????????# + # | | ?????????????????????# # s ] # | | ?????????????????????# # # | | ?????????????????????# #@ # | | ?????????????????????# # # | | ?????????????????????# ########## | | ?????????????????????# #????????? | | ?????????????????????# #????????? | | ?????????????????????# #????????? | | ?????????????????????# #??####??? | | ?????????????????????# #? # | | ????????????###??????# #?"" !!# | | ????????????# ##### #""" !=# | | ????????????# #""" # | | ???????? + ! # | | ???????????## ##### # # | | ????????????##+??????# # "" # | | ?????????????????????# #? S"" # | | ?????????????????????# #? "" # | | ?????????????????????# ########## | | ?????????????????????# ## || # | | ??##########?????????# ## || # | | ??# ######???## ## | # | | ??# """ # ##### # # | | ??# """ + T # # | | ??# """ # "" + # | | ??# # ##### # # | | ??# """ ! ## ##???## ## """ # | +----------------------------------------------------+ Best States ------------- Heat Dissipation 31 Energy Generation 5 Energy Capacity 100 Matter Stores 149 Matter Capacity 300 Sight Range 16 Terrain Scan Density 10 Evasion (%) 64 Offensive Hacking 10 Defensive Hacking 10 Item Schematics ----------------- None Robot Schematics ------------------ None Fabricated ------------ Nothing Alien Tech Used ----------------- None Achievements -------------- None Challenges ------------ None Game ------ Seed LayeredSystemBeam Manual? 0 Play Time 00:08:06 Cumulative 34.9 hours Start 2025.03.31 @ 22:06:10 End 2025.03.31 @ 22:13:54 Sessions 1 Manual Loads 0 Difficulty Rogue Special Mode None Game No. 104 Rogue 104 Adventurer 0 Explorer 0 Win Type - Total 0 Types 0/0/0/0/0/0/0/0/0 Lore% 16 Gallery% 24 Achievement% 26 Wizard Run 0 Options --------- Layout 1 ASCII 0 Keyboard 0 Movement Mouse Keybinds 0 Fullscreen 1 Font 36/Smallcaps Map View 50x40 Zoom Use 0% Tactical HUD 0 Map Filters NONE Filters NONE Steam 1 RUN: 9845deb6-e323-4b3a-9904-a6a7889ada5f